bitfinex-derivatives/quotes_BTCF0:USTF0_20241224
["timestamp","ask_amount","ask_price","bid_price","bid_amount"]
[1735028624260,0.001,94458.0,94457.0,0.3708]
[1735028624468,0.05401,94458.0,94457.0,0.3708]
[1735028625557,0.05401,94458.0,94457.0,0.3678]
[1735028625757,0.05401,94458.0,94457.0,0.3708]
[1735028626357,0.05301,94458.0,94457.0,0.3638]
[1735028626566,0.05301,94458.0,94457.0,0.3688]
[1735028627464,0.05301,94458.0,94457.0,0.008]
[1735028628572,0.053021,94439.0,94410.0,0.10778926]
[1735028628869,0.053021,94439.0,94425.0,0.0726]
[1735028629959,0.054021,94439.0,94438.0,0.3698]
[1735028630361,0.055021,94439.0,94438.0,0.3768]
[1735028630659,0.15003955,94439.0,94438.0,0.3768]
[1735028630863,0.16041398,94439.0,94438.0,0.3768]
[1735028631956,0.06539543,94439.0,94438.0,0.3768]
[1735028632357,0.055021,94439.0,94438.0,0.3768]
[1735028638772,0.002,94439.0,94438.0,0.429821]
[1735028638976,0.09501855,94443.0,94442.0,0.053019]
[1735028639775,0.12673761,94448.0,94447.0,0.053016]
[1735028639776,0.09501855,94448.0,94447.0,0.053016]
[1735028640166,0.17975061,94454.0,94452.0,0.053013]
[1735028640371,0.12673761,94454.0,94453.0,0.4294]
[1735028641075,0.05301,94458.0,94454.0,0.053012]
[1735028641372,0.05301,94458.0,94441.0,0.3608]
[1735028641373,0.3608,94455.0,94448.0,0.10778926]
[1735028641580,0.3608,94455.0,94454.0,0.053012]
[1735028642973,0.3618,94455.0,94454.0,0.059012]
[1735028643374,0.3618,94455.0,94454.0,0.128312]
[1735028644170,0.3618,94455.0,94454.0,0.130312]
[1735028644380,0.3618,94455.0,94454.0,0.0773]
[1735028647474,0.3618,94455.0,94454.0,0.130312]
[1735028656481,0.3618,94455.0,94454.0,0.061012]
[1735028662389,0.001,94455.0,94454.0,0.061012]
[1735028662688,0.3618,94455.0,94454.0,0.061012]
[1735028665094,8.031e-05,94464.0,94454.0,0.061012]
[1735028665095,8.031e-05,94464.0,94463.0,0.053007]
[1735028666295,8.031e-05,94464.0,94463.0,0.16395964]
[1735028667204,8.031e-05,94464.0,94463.0,0.17809547]
[1735028668192,8.031e-05,94464.0,94463.0,0.72181937]
[1735028669304,8.031e-05,94464.0,94463.0,0.40667597]
[1735028670608,8.031e-05,94464.0,94463.0,0.17809547]
[1735028671796,8.031e-05,94464.0,94463.0,0.49312849]
[1735028673098,8.031e-05,94464.0,94463.0,0.17809547]
[1735028673604,8.031e-05,94464.0,94463.0,0.054007]
[1735028674794,0.05308631,94464.0,94463.0,0.001]
[1735028675105,0.053012,94456.0,94454.0,0.31503302]
[1735028675302,0.3608,94455.0,94454.0,0.31503302]
[1735028676008,0.3608,94455.0,94441.0,0.053019]
[1735028676009,0.053012,94454.0,94441.0,0.053019]
[1735028676201,0.3608,94445.0,94441.0,0.053019]
[1735028676708,0.3608,94445.0,94440.0,0.01592]
[1735028677104,0.508,94445.0,94440.0,0.01592]
[1735028677409,0.508,94445.0,94436.0,0.25213085]
[1735028677607,0.053019,94441.0,94436.0,0.25213085]
[1735028678095,0.0703,94440.0,94436.0,0.25213085]
[1735028678806,0.0703,94440.0,94439.0,0.00758826]
[1735028679604,0.0713,94440.0,94439.0,0.00758826]
[1735028679803,0.0723,94440.0,94439.0,0.00858826]
[1735028690808,0.002,94440.0,94439.0,0.1778994]
[1735028691014,0.002,94440.0,94439.0,0.19104973]
[1735028691210,0.002,94440.0,94439.0,0.07475959]
[1735028691908,0.002,94440.0,94439.0,0.19635301]
[1735028692907,0.3608,94451.0,94450.0,0.053014]
[1735028694109,0.3608,94451.0,94450.0,0.056014]
[1735028695212,0.3618,94451.0,94450.0,0.058014]
[1735028696619,0.001,94451.0,94450.0,0.16868024]
[1735028697917,0.001,94451.0,94450.0,0.18460024]
[1735028698419,0.001,94451.0,94450.0,0.16868024]
[1735028698619,0.001,94451.0,94450.0,0.18460024]
[1735028698818,0.3608,94469.0,94459.0,0.053009]
[1735028699026,0.36140001,94469.0,94463.0,0.053007]
[1735028699922,0.053008,94461.0,94459.0,0.001]
[1735028700124,0.36136001,94466.0,94459.0,0.001]
[1735028700320,0.36136001,94466.0,94461.0,0.053008]
[1735028700822,0.36136001,94466.0,94463.0,0.001]
[1735028701313,0.36136001,94466.0,94463.0,0.056007]
[1735028701718,0.36136001,94466.0,94463.0,0.003]
[1735028702022,0.41436501,94466.0,94463.0,0.003]
[1735028702415,0.36136001,94466.0,94463.0,0.003]
[1735028703121,0.36136001,94466.0,94463.0,0.002]
[1735028703825,0.1268471,94476.0,94473.0,0.053001]
[1735028704221,0.1268471,94478.0,94473.0,0.053001]
[1735028704422,0.3608,94474.0,94473.0,0.053001]
[1735028705230,0.3608,94474.0,94466.0,0.16079426]
[1735028705431,0.053002,94473.0,94466.0,0.053005]
[1735028705627,0.053005,94468.0,94463.0,0.001]
[1735028705819,0.3608,94465.0,94463.0,0.001]
[1735028706025,0.3608,94465.0,94461.0,0.18893395]
[1735028706430,0.413806,94465.0,94461.0,0.18893395]
[1735028706627,0.413806,94465.0,94456.0,0.18893395]
[1735028706628,0.3608,94465.0,94456.0,0.18893395]
[1735028706823,0.41381,94457.0,94456.0,0.07593395]
[1735028707028,0.053013,94452.0,94451.0,0.25213085]
[1735028707229,0.413813,94452.0,94451.0,0.25213085]
[1735028708429,0.053015,94449.0,94443.0,0.053018]
[1735028708932,0.053019,94441.0,94432.0,0.053024]
[1735028709225,0.053019,94441.0,94430.0,0.10778926]
[1735028709428,0.053019,94441.0,94433.0,0.053024]
[1735028710234,0.054019,94441.0,94439.0,0.00458826]
[1735028712825,0.055019,94441.0,94439.0,0.01058826]
[1735028725447,0.002,94441.0,94440.0,0.05302]
[1735028726639,0.36136001,94444.0,94440.0,0.05302]
[1735028726841,0.002,94441.0,94440.0,0.06202]
[1735028727847,0.36344,94444.0,94443.0,0.053018]
[1735028728041,0.3628,94444.0,94443.0,0.053018]
[1735028729342,0.3618,94444.0,94443.0,0.053018]
[1735028729842,0.3618,94444.0,94443.0,0.056018]
[1735028730945,0.3618,94444.0,94443.0,0.061018]
[1735028737150,0.001,94444.0,94443.0,0.008]
[1735028737448,0.054018,94444.0,94443.0,0.008]
[1735028738649,0.10555902,94444.0,94443.0,0.008]
[1735028741065,0.054018,94444.0,94443.0,0.008]
[1735028742363,0.21287267,94444.0,94443.0,0.008]
[1735028743747,0.10555816,94444.0,94443.0,0.008]
[1735028744858,0.054018,94444.0,94443.0,0.008]
[1735028745962,0.414818,94444.0,94443.0,0.008]
[1735028746152,0.46635816,94444.0,94443.0,0.008]
[1735028758052,0.414818,94444.0,94443.0,0.008]
[1735028760670,0.65633018,94444.0,94443.0,0.008]
[1735028761774,0.46636145,94444.0,94443.0,0.008]
[1735028763868,0.46636145,94444.0,94426.0,0.25213085]
[1735028764074,0.413827,94427.0,94426.0,0.25213085]
[1735028764571,0.413827,94427.0,94423.0,0.25213085]
[1735028764778,0.053029,94424.0,94423.0,0.25213085]
[1735028765865,0.053031,94421.0,94413.0,0.37876585]
[1735028766171,0.053031,94421.0,94413.0,0.38000585]
[1735028766484,0.053031,94421.0,94413.0,0.32697085]
[1735028766775,0.053031,94421.0,94413.0,0.32573085]
[1735028766979,0.18109492,94421.0,94420.0,0.00112325]
[1735028768278,0.18109492,94421.0,94420.0,0.00612325]
[1735028768279,0.18209492,94421.0,94420.0,0.00612325]
[1735028768481,0.055031,94421.0,94420.0,0.00612325]
[1735028771390,0.18197939,94421.0,94420.0,0.00612325]
[1735028772082,0.055031,94421.0,94420.0,0.00612325]
[1735028775977,0.18192154,94421.0,94420.0,0.00612325]
[1735028776978,0.12889054,94421.0,94420.0,0.00612325]
[1735028777383,0.12889054,94421.0,94420.0,0.15182325]
[1735028777879,0.15885774,94426.0,94425.0,0.053028]
[1735028778180,0.053021,94438.0,94431.0,0.053025]
[1735028778386,0.36136001,94446.0,94431.0,0.053025]
[1735028778387,0.26641083,94440.0,94431.0,0.053025]
[1735028778586,0.15859612,94440.0,94431.0,0.053025]
[1735028778785,0.053022,94438.0,94431.0,0.053025]
[1735028778989,0.3608,94438.0,94425.0,0.004]
[1735028779280,0.3608,94438.0,94425.0,0.058028]
[1735028779281,0.001,94426.0,94425.0,0.058028]
[1735028779582,0.053024,94434.0,94431.0,0.001]
[1735028779981,0.36136001,94438.0,94431.0,0.001]
[1735028780190,0.3618,94438.0,94434.0,0.053023]
[1735028780378,0.3618,94438.0,94435.0,0.053023]
[1735028781680,0.3608,94438.0,94435.0,0.053023]
[1735028781882,0.3608,94438.0,94436.0,0.053022]
[1735028782085,0.3608,94438.0,94437.0,0.1553]
[1735028782279,0.3618,94438.0,94437.0,0.1553]
[1735028783581,0.001,94438.0,94437.0,0.1553]
[1735028784581,0.09514264,94442.0,94437.0,0.1573]
[1735028784785,0.09514264,94442.0,94437.0,0.1583]
[1735028785285,0.14816164,94442.0,94437.0,0.1583]
[1735028785788,0.053019,94442.0,94437.0,0.1583]
[1735028786678,0.053019,94442.0,94437.0,0.1573]
[1735028786879,0.14816164,94442.0,94437.0,0.1583]
[1735028787285,0.05302,94441.0,94437.0,0.1583]
[1735028787489,0.05302,94441.0,94437.0,0.1593]
[1735028787692,0.3608,94438.0,94437.0,0.004]
[1735028788188,0.3608,94438.0,94437.0,0.002]
[1735028788495,0.3608,94438.0,94437.0,0.003]
[1735028788791,0.3618,94438.0,94437.0,0.003]
[1735028789388,0.3608,94438.0,94437.0,0.003]
[1735028790786,0.37305087,94446.0,94437.0,0.056021]
[1735028790985,0.053018,94444.0,94437.0,0.056021]
[1735028791598,0.37313086,94446.0,94437.0,0.056021]
[1735028791782,0.09513698,94439.0,94437.0,0.056021]
[1735028793095,0.001,94439.0,94437.0,0.056021]
[1735028793395,0.053021,94438.0,94437.0,0.056021]
[1735028794089,0.053021,94438.0,94437.0,0.055021]
[1735028794295,0.053021,94438.0,94437.0,0.057021]
[1735028795197,0.053021,94438.0,94437.0,0.055021]
[1735028795399,0.054021,94438.0,94437.0,0.057021]
[1735028796401,0.053021,94438.0,94437.0,0.057021]
[1735028796995,0.053021,94438.0,94437.0,0.056021]
[1735028797900,0.053021,94438.0,94437.0,0.054021]
[1735028798088,0.054021,94438.0,94437.0,0.056021]
[1735028798486,0.053021,94438.0,94437.0,0.054021]
[1735028798694,0.053021,94438.0,94437.0,0.056021]
[1735028798887,0.413821,94438.0,94437.0,0.056021]
[1735028799092,0.413821,94438.0,94437.0,0.003]
[1735028799392,0.3608,94438.0,94425.0,0.25213085]
[1735028799701,0.053029,94424.0,94423.0,0.25213085]
[1735028800804,0.053031,94421.0,94420.0,0.00012325]
[1735028802103,0.053032,94419.0,94418.0,0.25213085]
[1735028802305,0.053038,94408.0,94407.0,0.13033085]
[1735028803002,0.05311328,94408.0,94407.0,0.13033085]
[1735028803906,0.05311328,94408.0,94401.0,0.01592]
[1735028803907,7.528e-05,94408.0,94401.0,0.01592]
[1735028804207,0.053039,94406.0,94401.0,0.01592]
[1735028805406,0.054039,94406.0,94401.0,0.01592]
[1735028805707,0.054039,94406.0,94403.0,0.3648]
[1735028806805,0.055039,94406.0,94403.0,0.3648]
[1735028810903,0.002,94406.0,94405.0,0.05304]
[1735028811821,0.002,94406.0,94405.0,0.16611151]
[1735028812018,0.002,94406.0,94405.0,0.17011151]
[1735028818042,0.002,94406.0,94405.0,0.18603151]
[1735028818640,0.002,94406.0,94405.0,0.17011151]
[1735028818832,0.002,94406.0,94405.0,0.18603151]
[1735028824246,0.14888998,94442.0,94427.0,0.176]
[1735028824546,0.00060001,94468.0,94452.0,0.053013]
[1735028824748,0.22163838,94455.0,94454.0,0.053012]
[1735028825149,0.22171545,94455.0,94454.0,0.16394303]
[1735028826050,7.707e-05,94455.0,94454.0,0.16394303]
[1735028826448,7.707e-05,94455.0,94450.0,0.31503302]
[1735028826652,0.003,94453.0,94450.0,0.31503302]
[1735028826951,0.053014,94452.0,94450.0,0.31503302]
[1735028827145,0.0811,94451.0,94450.0,0.19323302]
[1735028827746,0.053017,94446.0,94444.0,0.00012062]
[1735028828150,0.3608,94445.0,94444.0,0.00012062]
[1735028828348,0.3608,94449.0,94444.0,0.00012062]
[1735028828549,0.413815,94449.0,94444.0,0.00012062]
[1735028829148,0.053016,94448.0,94444.0,0.00012062]
[1735028830048,0.001,94446.0,94444.0,0.00012062]
[1735028830454,0.053016,94448.0,94444.0,0.00012062]
[1735028831350,0.053017,94446.0,94444.0,0.00012062]
[1735028832757,0.053017,94446.0,94444.0,0.00112062]
[1735028833256,0.053017,94446.0,94444.0,0.00012062]
[1735028833453,0.055017,94446.0,94444.0,0.00012062]
[1735028833856,0.054017,94446.0,94444.0,0.00012062]
[1735028834548,0.055017,94446.0,94444.0,0.00012062]
[1735028842861,0.055017,94446.0,94394.0,0.56377662]
[1735028842862,0.053039,94406.0,94394.0,0.56377662]
[1735028843160,0.413839,94406.0,94405.0,0.44056847]
[1735028843353,0.413839,94406.0,94405.0,0.43932847]
[1735028843663,0.42527047,94406.0,94405.0,0.43932847]
[1735028843963,0.05304,94404.0,94399.0,0.00132]
[1735028844163,0.05304,94404.0,94390.0,0.1077123]
[1735028844458,0.05304,94404.0,94395.0,0.053045]
[1735028844660,0.053041,94403.0,94395.0,0.053045]
[1735028844866,0.053042,94402.0,94395.0,0.053045]
[1735028846055,0.054042,94402.0,94400.0,0.107]
[1735028847358,0.054042,94402.0,94400.0,0.11]
[1735028851261,0.054042,94402.0,94401.0,0.0785]
[1735028852652,0.054042,94402.0,94401.0,0.0855]
[1735028853167,0.054042,94402.0,94401.0,0.0885]
[1735028855470,0.054042,94402.0,94401.0,0.01]
[1735028857973,0.06512773,94402.0,94401.0,0.01]
[1735028864677,0.054042,94402.0,94401.0,0.01]
[1735028872673,0.001,94402.0,94401.0,0.01]
[1735028875276,0.054041,94402.0,94401.0,0.01]
[1735028877084,0.06550905,94402.0,94401.0,0.01]
[1735028881389,0.11707501,94402.0,94401.0,0.01]
[1735028884687,0.06550905,94402.0,94401.0,0.01]
[1735028887393,0.11707492,94402.0,94401.0,0.01]
[1735028888589,0.22438212,94402.0,94401.0,0.01]
[1735028890391,0.06550905,94402.0,94401.0,0.01]
[1735028895006,0.001,94402.0,94401.0,0.01]
[1735028895196,0.001,94402.0,94401.0,0.0855]
[1735028899896,0.12808124,94402.0,94401.0,0.01]
[1735028900298,0.053045,94395.0,94394.0,0.25285648]
[1735028900500,0.413845,94395.0,94394.0,0.25285648]
[1735028901600,0.053051,94384.0,94383.0,0.41105648]
[1735028901804,0.413851,94384.0,94383.0,0.41105648]
[1735028902695,0.413851,94384.0,94383.0,0.33155648]
[1735028903297,0.053054,94379.0,94375.0,0.25285648]
[1735028903598,0.41395687,94379.0,94375.0,0.25285648]
[1735028904106,0.36090287,94379.0,94375.0,0.25285648]
[1735028904299,0.053056,94376.0,94375.0,0.25285648]
[1735028905098,0.053059,94371.0,94370.0,0.00158948]
[1735028905295,0.413859,94371.0,94370.0,0.00158948]
[1735028907097,0.2397,94371.0,94370.0,0.00158948]
[1735028907301,0.12697497,94372.0,94371.0,0.053059]
[1735028907507,0.12697497,94374.0,94373.0,0.053058]
[1735028908804,0.00010287,94379.0,94373.0,0.053058]
[1735028909110,0.05315787,94379.0,94373.0,0.053058]
[1735028909308,0.053056,94376.0,94370.0,0.36338948]
[1735028910007,0.053056,94376.0,94371.0,0.001]
[1735028910809,0.054056,94376.0,94370.0,0.36338948]
[1735028911309,0.053056,94376.0,94370.0,0.36338948]
[1735028911506,0.053056,94376.0,94370.0,0.36238948]
[1735028911707,0.053056,94376.0,94371.0,0.001]
[1735028912911,0.053058,94373.0,94371.0,0.001]
[1735028913299,0.053058,94373.0,94370.0,0.36338948]
[1735028913603,0.053058,94373.0,94371.0,0.001]
[1735028914811,0.053058,94373.0,94371.0,0.002]
[1735028921510,0.053055,94378.0,94371.0,0.002]
[1735028921707,0.01099402,94379.0,94371.0,0.002]
[1735028921708,0.00010287,94379.0,94377.0,0.053055]
[1735028921916,0.00010287,94379.0,94377.0,0.130655]
[1735028923106,0.00010287,94379.0,94377.0,0.131655]
[1735028925511,0.12697497,94403.0,94378.0,0.11567544]
[1735028925712,0.12697497,94403.0,94401.0,0.053041]
[1735028926413,0.13805361,94403.0,94401.0,0.053041]
[1735028926617,0.00012503,94402.0,94401.0,0.053041]
[1735028927919,0.00312503,94402.0,94401.0,0.053041]
[1735028928310,0.00512503,94402.0,94401.0,0.053041]
[1735028931122,0.00512503,94402.0,94395.0,0.3608]
[1735028931123,0.053042,94401.0,94395.0,0.3608]
[1735028931320,0.053044,94397.0,94395.0,0.3608]
[1735028932921,0.054044,94397.0,94395.0,0.3608]
[1735028933513,0.055044,94397.0,94395.0,0.3608]
[1735028935612,0.002,94397.0,94395.0,0.413845]
[1735028940033,0.002,94397.0,94396.0,0.3608]
[1735028942011,0.002,94397.0,94396.0,0.413845]
[1735028952231,0.09711348,94397.0,94396.0,0.413845]
[1735028953629,0.002,94397.0,94396.0,0.413845]
[1735028965743,0.12897497,94397.0,94396.0,0.413845]
[1735028968446,0.002,94397.0,94396.0,0.413845]
[1735028975553,0.002,94397.0,94396.0,0.72820182]
[1735028976550,0.002,94397.0,94396.0,0.72920182]
[1735028976752,0.001,94397.0,94396.0,0.68536924]
[1735028979756,0.15871872,94413.0,94412.0,0.053036]
[1735028979957,0.15871872,94413.0,94412.0,0.413836]
[1735028980655,0.15871872,94414.0,94412.0,0.413836]
[1735028980855,0.00205328,94413.0,94412.0,0.413836]
[1735028981253,0.00405328,94413.0,94412.0,0.413836]
[1735028981954,0.00405328,94413.0,94412.0,0.68236024]
[1735028982366,0.00405328,94413.0,94412.0,0.32156024]
[1735028982555,0.00205328,94413.0,94412.0,0.32156024]
[1735028982962,5.328e-05,94413.0,94412.0,0.32156024]
[1735028983162,5.328e-05,94413.0,94412.0,0.32356024]
[1735028983362,5.328e-05,94413.0,94412.0,0.055036]
[1735028983669,0.07625328,94413.0,94412.0,0.055036]
[1735028984768,0.07625328,94413.0,94412.0,0.30767145]
[1735028986065,0.07625328,94413.0,94412.0,0.055036]
[1735028988761,0.07625328,94413.0,94412.0,0.30760071]
[1735028990169,0.07625328,94413.0,94412.0,0.055036]
[1735028991867,0.07625328,94413.0,94412.0,0.30760071]
[1735028992171,0.07625328,94413.0,94412.0,0.25456471]
[1735028992366,0.15315328,94413.0,94412.0,0.25456471]
[1735028993064,0.15315328,94413.0,94412.0,0.002]
[1735028993264,0.15315328,94413.0,94410.0,0.25256471]
[1735028993265,0.15415328,94413.0,94410.0,0.25256471]
[1735028993462,0.053036,94412.0,94410.0,0.25256471]
[1735028994274,0.053036,94412.0,94410.0,0.30560171]
[1735028994471,0.053036,94412.0,94410.0,0.30660171]
[1735028994665,0.053036,94412.0,94410.0,0.054037]
[1735028995568,0.15415328,94413.0,94410.0,0.001]
[1735028995773,5.328e-05,94413.0,94412.0,0.053036]
[1735028997067,5.328e-05,94413.0,94412.0,0.055036]
[1735029005673,5.328e-05,94413.0,94412.0,0.002]
[1735029005873,0.05308828,94413.0,94412.0,0.002]
[1735029007081,0.05308828,94413.0,94412.0,0.25272791]
[1735029007282,0.05308828,94413.0,94412.0,0.25372791]
[1735029008178,0.05308828,94413.0,94412.0,0.001]
[1735029014373,5.328e-05,94413.0,94412.0,0.001]
[1735029014979,5.328e-05,94413.0,94412.0,0.25404061]
[1735029015285,0.15871872,94420.0,94413.0,0.053035]
[1735029015481,0.15871872,94420.0,94419.0,0.413832]
[1735029016374,0.001,94420.0,94419.0,0.413832]
[1735029016774,0.003,94420.0,94419.0,0.413832]
[1735029017978,0.003,94420.0,94419.0,0.68926241]
[1735029018174,0.004,94420.0,94419.0,0.68926241]
[1735029018374,0.004,94420.0,94419.0,0.27543041]
[1735029018579,0.0802,94420.0,94419.0,0.27543041]
[1735029019180,0.1552,94420.0,94419.0,0.18957806]
[1735029019681,0.16592647,94420.0,94419.0,0.18957806]
[1735029020693,0.16592647,94420.0,94416.0,0.18957806]
[1735029020988,0.053033,94417.0,94416.0,0.18957806]
[1735029022088,0.053034,94415.0,94414.0,0.18957806]
[1735029022486,0.16392647,94420.0,94418.0,0.053032]
[1735029022881,0.16192647,94420.0,94418.0,0.053032]
[1735029024692,0.16192647,94420.0,94419.0,0.18957806]
[1735029025185,0.16492647,94420.0,94419.0,0.18957806]
[1735029025586,0.0792,94420.0,94419.0,0.18957806]
[1735029025779,0.0772,94420.0,94419.0,0.18957806]
[1735029025984,0.0802,94420.0,94419.0,0.18957806]
[1735029026181,0.004,94420.0,94419.0,0.18957806]
[1735029026888,0.004,94420.0,94419.0,0.26517806]
[1735029027495,0.004,94420.0,94419.0,0.0756]
[1735029032784,0.59981872,94439.0,94419.0,0.0756]
[1735029032985,0.4411,94439.0,94426.0,0.3608]
[1735029033387,0.053022,94437.0,94432.0,0.053024]
[1735029034289,0.053022,94436.0,94432.0,0.053024]
[1735029034492,0.44366001,94439.0,94432.0,0.053024]
[1735029034493,0.053023,94434.0,94432.0,0.053024]
[1735029035897,0.060023,94434.0,94432.0,0.053024]
[1735029036602,0.064023,94434.0,94432.0,0.053024]
[1735029038202,0.061023,94434.0,94432.0,0.053024]
[1735029038388,0.054023,94434.0,94432.0,0.053024]
[1735029040493,0.001,94434.0,94432.0,0.053024]
[1735029041199,0.50556066,94439.0,94435.0,0.053023]
[1735029041400,0.50492066,94439.0,94435.0,0.053023]
[1735029041598,0.50492066,94439.0,94437.0,0.053021]
[1735029041799,0.42462066,94439.0,94437.0,0.053021]
[1735029043000,0.42562066,94439.0,94437.0,0.053021]
[1735029043902,0.42662066,94439.0,94437.0,0.053021]
[1735029045602,0.06582066,94439.0,94437.0,0.053021]
[1735029046405,0.053024,94433.0,94431.0,0.551362]
[1735029046704,0.053024,94433.0,94432.0,0.189322]
[1735029048105,0.053024,94433.0,94432.0,0.191322]
[1735029048406,0.053024,94433.0,94432.0,0.002]
[1735029050208,0.17993268,94433.0,94432.0,0.002]
[1735029050609,0.17993268,94433.0,94432.0,0.001]
[1735029051307,0.053025,94432.0,94429.0,0.3608]
[1735029052403,0.053025,94432.0,94429.0,0.3628]
[1735029055710,0.053025,94432.0,94429.0,0.61522933]
[1735029056414,0.12690868,94433.0,94429.0,0.61522933]
[1735029056713,0.053025,94431.0,94429.0,0.61522933]
[1735029057013,0.053025,94431.0,94429.0,0.002]
[1735029058112,0.05303,94423.0,94419.0,0.67676343]
[1735029058607,0.05303,94423.0,94419.0,0.3608]
[1735029059126,0.05303,94423.0,94417.0,0.31596343]
[1735029060007,0.05403,94423.0,94419.0,0.005]
[1735029060310,0.05403,94423.0,94419.0,0.007]
[1735029060510,0.05303,94423.0,94419.0,0.002]
[1735029060711,0.05303,94423.0,94417.0,0.21258943]
[1735029060712,0.3608,94420.0,94417.0,0.21258943]
[1735029060907,0.3608,94420.0,94403.0,8.982e-05]
[1735029060908,0.5262,94419.0,94403.0,8.982e-05]
[1735029061118,0.05304,94404.0,94403.0,8.982e-05]
[1735029063109,0.05304,94404.0,94403.0,0.00208982]
[1735029063703,0.05404,94404.0,94403.0,8.982e-05]
[1735029063907,0.05404,94404.0,94403.0,0.00208982]
[1735029067613,0.053051,94384.0,94383.0,0.18946511]
[1735029068118,0.053054,94379.0,94377.0,0.18946511]
[1735029068507,8.982e-05,94378.0,94377.0,0.18946511]
[1735029069818,0.00108982,94378.0,94365.0,0.3608]
[1735029070013,0.053056,94375.0,94365.0,0.3608]
[1735029071316,0.054056,94375.0,94365.0,0.3608]
[1735029072719,0.054056,94375.0,94374.0,0.0045894]
[1735029076628,0.054056,94375.0,94374.0,0.0015894]
[1735029076828,0.054056,94375.0,94374.0,0.0045894]
[1735029078317,0.054056,94375.0,94374.0,0.003]
[1735029091926,0.001,94375.0,94374.0,0.003]
[1735029092338,8.982e-05,94378.0,94374.0,0.003]
[1735029092533,8.982e-05,94378.0,94377.0,0.413855]
[1735029095542,0.00108982,94378.0,94377.0,0.415855]
[1735029095939,8.982e-05,94378.0,94377.0,0.415855]
[1735029096137,0.00108982,94378.0,94377.0,0.417855]
[1735029096330,0.00108982,94378.0,94377.0,0.60732011]
[1735029097433,0.00108982,94378.0,94377.0,0.417855]
[1735029098838,0.00108982,94378.0,94377.0,0.67047514]
[1735029100138,0.00108982,94378.0,94377.0,0.417855]
[1735029102536,0.00108982,94378.0,94377.0,0.3648]
[1735029103040,0.05414482,94378.0,94377.0,0.3648]
[1735029104544,0.05414482,94378.0,94377.0,0.55451798]
[1735029107348,0.05414482,94378.0,94377.0,0.3648]
[1735029110246,0.00108982,94378.0,94377.0,0.3648]
[1735029114346,0.00108982,94378.0,94377.0,0.61742014]
[1735029115644,0.00108982,94378.0,94377.0,0.3648]
[1735029121546,0.09642897,94378.0,94377.0,0.3648]
[1735029121748,0.12673277,94384.0,94383.0,0.053052]
[1735029121951,0.15871872,94392.0,94383.0,0.3608]
[1735029122249,0.15871872,94392.0,94391.0,0.3608]
[1735029123049,0.18990168,94400.0,94396.0,0.053045]
[1735029123050,0.01078994,94400.0,94396.0,0.053045]
[1735029123252,0.15871872,94403.0,94396.0,0.053045]
[1735029123549,0.15871872,94403.0,94402.0,0.3608]
[1735029124251,0.15871872,94408.0,94402.0,0.3608]
[1735029124646,0.15871872,94408.0,94405.0,0.053039]
[1735029124843,0.15871872,94408.0,94406.0,0.053039]
[1735029125452,0.16271872,94408.0,94406.0,0.053039]
[1735029125846,0.004,94408.0,94406.0,0.053039]
[1735029126442,0.011,94408.0,94406.0,0.053039]
[1735029126842,0.007,94408.0,94406.0,0.053039]
[1735029127145,0.012,94408.0,94406.0,0.053039]
[1735029127543,0.3608,94428.0,94424.0,0.053029]
[1735029127743,0.15871872,94429.0,94428.0,0.053027]
[1735029127943,0.15871872,94429.0,94428.0,0.413827]
[1735029128751,0.053022,94436.0,94428.0,0.413827]
[1735029128952,0.0779,94438.0,94428.0,0.3608]
[1735029129144,0.15871872,94441.0,94440.0,0.05302]
[1735029130344,0.0108727,94451.0,94440.0,0.05302]
[1735029130553,0.08,94453.0,94440.0,0.16087514]
[1735029131058,0.053014,94451.0,94440.0,0.16087514]
[1735029131244,0.011,94441.0,94440.0,0.16187514]
[1735029131449,0.011,94441.0,94440.0,0.05402]
[1735029131652,0.011,94441.0,94440.0,0.001]
[1735029131852,0.086,94441.0,94440.0,0.001]
[1735029132650,0.079,94441.0,94437.0,0.3608]
[1735029132962,0.079,94441.0,94440.0,0.001]
[1735029133253,0.079,94441.0,94431.0,0.10785514]
[1735029133450,0.085,94441.0,94440.0,0.001]
[1735029133849,0.005,94441.0,94439.0,0.3608]
[1735029134354,0.009,94441.0,94440.0,0.05302]
[1735029134657,0.01,94441.0,94440.0,0.05402]
[1735029135357,0.006,94441.0,94440.0,0.05402]
[1735029135555,0.01,94441.0,94440.0,0.05402]
[1735029136158,0.011,94441.0,94440.0,0.05302]
[1735029136743,0.011,94441.0,94440.0,0.05402]
[1735029140257,0.007,94441.0,94440.0,0.05602]
[1735029140760,0.0787,94460.0,94440.0,0.12028236]
[1735029140961,0.0787,94460.0,94457.0,0.05301]
[1735029141149,0.0787,94460.0,94458.0,0.053009]
[1735029142259,0.0837,94472.0,94459.0,0.053009]
[1735029142462,0.053003,94470.0,94459.0,0.053009]
[1735029142957,0.003,94460.0,94459.0,0.053009]
[1735029143555,0.0837,94472.0,94455.0,0.3608]
[1735029143760,0.0837,94472.0,94465.0,0.3608]
[1735029144452,0.09461131,94472.0,94465.0,0.3608]
[1735029144653,0.14761331,94472.0,94465.0,0.413806]
[1735029146257,0.15161331,94472.0,94465.0,0.413806]
[1735029146457,0.15761331,94472.0,94465.0,0.414806]
[1735029147067,0.053003,94471.0,94465.0,0.414806]
[1735029149065,0.057003,94471.0,94465.0,0.413806]
[1735029149363,0.061003,94471.0,94465.0,0.413806]
[1735029151164,0.061003,94471.0,94467.0,0.053005]
[1735029151355,0.008,94471.0,94469.0,0.053003]
[1735029152156,0.004,94471.0,94469.0,0.053003]
[1735029152359,0.008,94471.0,94469.0,0.053003]
[1735029152663,0.012,94471.0,94469.0,0.054003]
[1735029153364,0.013,94471.0,94469.0,0.054003]
[1735029154965,0.052995,94485.0,94469.0,0.001]
[1735029155268,0.2454,94491.0,94485.0,0.052995]